bitfinex-derivatives/quotes_SOLF0:USTF0_20250307
["timestamp","ask_amount","ask_price","bid_price","bid_amount"]
[1741350957083,0.05256344,142.42,142.39,7.0227]
[1741350957383,0.05256344,142.42,142.38,29.54]
[1741350958286,7.0218,142.41,142.38,29.54]
[1741350958673,7.07426344,142.42,142.38,36.5632]
[1741350958877,0.05256344,142.42,142.38,36.5632]
[1741350959285,0.05256344,142.42,142.39,7.0227]
[1741350959881,0.05256344,142.42,142.38,29.54]
[1741350960081,0.05256344,142.42,142.39,18.63807881]
[1741350960584,0.05256344,142.42,142.41,7.0218]
[1741350961186,0.05256344,142.42,142.41,25.65987881]
[1741350961387,9.0542,142.47,142.43,7.0207]
[1741350961890,2.0353,142.47,142.39,47.99807881]
[1741350962083,29.4,142.46,142.38,29.4]
[1741350962386,7.0221,142.41,142.38,29.4]
[1741350962685,0.05121963,142.43,142.38,29.4]
[1741350962882,0.05121963,142.43,142.38,29.45069587]
[1741350963095,0.05121963,142.43,142.39,18.63807881]
[1741350963588,0.05121963,142.43,142.4,7.0219]
[1741350964191,0.05121963,142.43,142.41,7.0218]
[1741350964382,0.05121963,142.43,142.39,18.63807881]
[1741350964790,7.07231963,142.43,142.39,25.66057881]
[1741350965391,0.05121963,142.43,142.4,7.022]
[1741350965584,0.05121963,142.43,142.38,0.05069587]
[1741350965980,7.0221,142.41,142.38,0.05069587]
[1741350966389,2.075,142.42,142.38,0.05069587]
[1741350966593,9.0966,142.42,142.38,0.05069587]
[1741350966783,2.075,142.42,142.38,0.05069587]
[1741350967192,2.075,142.42,142.39,7.0225]
[1741350967490,2.075,142.42,142.38,0.05069587]
[1741350967793,0.05121963,142.43,142.39,18.63807881]
[1741350968291,0.05121963,142.43,142.4,7.0222]
[1741350968889,0.05121963,142.43,142.39,18.63807881]
[1741350969190,0.05121963,142.43,142.41,7.0217]
[1741350970195,0.05121963,142.43,142.4,7.0221]
[1741350970396,0.05121963,142.43,142.39,18.63807881]
[1741350970694,0.05121963,142.43,142.41,7.0215]
[1741350970895,0.05121963,142.43,142.41,36.1015]
[1741350972099,0.05121963,142.43,142.41,29.08]
[1741350973496,0.05121963,142.43,142.38,0.05069587]
[1741350973693,0.05121963,142.43,142.39,28.98]
[1741350974096,7.0221,142.41,142.39,28.98]
[1741350974492,0.05121963,142.43,142.39,28.98]
[1741350974700,7.0223,142.41,142.39,28.98]
[1741350975092,7.0222,142.41,142.39,28.98]
[1741350975289,0.05121963,142.43,142.39,36.0025]
[1741350975492,0.05121963,142.43,142.39,28.98]
[1741350975690,7.0216,142.42,142.39,28.98]
[1741350975896,0.05121963,142.43,142.38,0.05069587]
[1741350976097,0.05121963,142.43,142.39,28.9]
[1741350976295,7.0223,142.4,142.39,28.9]
[1741350976499,0.05121963,142.43,142.39,28.9]
[1741350977094,0.05121963,142.43,142.39,47.53807881]
[1741350977487,0.05121963,142.43,142.41,7.0218]
[1741350977691,0.05121963,142.43,142.4,28.86]
[1741350979001,0.05121963,142.43,142.41,18.63807881]
[1741350979193,0.05121963,142.43,142.4,28.86]
[1741350979695,0.05121963,142.43,142.4,35.8823]
[1741350980596,0.05121963,142.43,142.4,28.86]
[1741350981090,0.05121963,142.43,142.41,18.63807881]
[1741350981297,29.01312555,142.48,142.41,18.63807881]
[1741350981493,29.01312555,142.48,142.44,18.63807881]
[1741350981793,36.03182555,142.48,142.44,47.37807881]
[1741350982198,36.03152555,142.48,142.44,54.39807881]
[1741350982402,0.0499641,142.47,142.45,0.04545408]
[1741350984294,0.0499641,142.47,142.43,28.68]
[1741350984899,0.0499641,142.47,142.43,47.31807881]
[1741350985103,0.0499641,142.47,142.46,7.0193]
[1741350985304,0.0499641,142.47,142.43,47.31807881]
[1741350985602,0.0499641,142.47,142.45,0.05104195]
[1741350986604,7.0193,142.46,142.45,0.05104195]
[1741350987107,7.0690641,142.47,142.45,0.05104195]
[1741350987306,0.0499641,142.47,142.43,28.68]
[1741350987706,7.0197,142.46,142.43,28.68]
[1741350988008,0.0499641,142.47,142.43,28.68]
[1741350988205,7.0198,142.45,142.43,28.68]
[1741350988609,0.0499641,142.47,142.43,28.72908473]
[1741350988800,7.02,142.45,142.43,28.72908473]
[1741350989002,0.0499641,142.47,142.43,0.04908473]
[1741350989905,0.0499641,142.47,142.46,7.0193]
[1741350993212,0.0499641,142.47,142.45,25.65777881]
[1741350993510,0.0499641,142.47,142.44,28.52]
[1741350993905,0.0499641,142.47,142.44,35.5402]
[1741350994511,0.0499641,142.47,142.44,28.52]
[1741350995117,0.0499641,142.47,142.46,7.0193]
[1741350996411,0.0499641,142.47,142.45,7.0197]
[1741350996613,0.0499641,142.47,142.44,28.52]
[1741350997017,0.0499641,142.47,142.45,18.63807881]
[1741350997215,0.0499641,142.47,142.44,28.52]
[1741350997811,0.0499641,142.47,142.44,35.5401]
[1741350998217,0.0499641,142.47,142.44,28.52]
[1741350999125,0.0499641,142.47,142.44,35.5403]
[1741350999425,0.0499641,142.47,142.44,28.52]
[1741350999618,0.0499641,142.47,142.44,35.5401]
[1741351000018,0.0499641,142.47,142.44,28.52]
[1741351000222,0.0499641,142.47,142.44,35.5403]
[1741351000417,0.0499641,142.47,142.44,28.52]
[1741351001012,7.0690641,142.47,142.44,28.52]
[1741351001214,0.0499641,142.47,142.44,28.52]
[1741351001423,0.0499641,142.47,142.45,7.0195]
[1741351004519,0.0499641,142.47,142.46,11.91784767]
[1741351006326,0.0499641,142.47,142.46,18.93714767]
[1741351007026,0.0499641,142.47,142.46,11.91784767]
[1741351008820,0.0499641,142.47,142.46,18.93714767]
[1741351010239,1.9877,142.51,142.48,7.0183]
[1741351010429,9.0048,142.51,142.48,39.95784767]
[1741351010733,1.9877,142.51,142.48,46.97614767]
[1741351011225,2.04138443,142.51,142.48,47.02051717]
[1741351012127,2.04138443,142.51,142.48,0.0443695]
[1741351012635,9.05848443,142.51,142.48,0.0443695]
[1741351013040,2.04138443,142.51,142.48,0.0443695]
[1741351013731,7.0178,142.49,142.48,0.0443695]
[1741351013931,2.04138443,142.51,142.48,0.0443695]
[1741351014735,7.0176,142.5,142.48,0.0443695]
[1741351015029,2.04138443,142.51,142.48,7.0626695]
[1741351015235,2.04138443,142.51,142.48,0.0443695]
[1741351015434,2.04138443,142.51,142.49,18.93554767]
[1741351015630,0.05368443,142.51,142.49,11.91784767]
[1741351015826,0.05368443,142.51,142.49,39.89784767]
[1741351016033,0.05368443,142.51,142.5,7.0174]
[1741351017344,0.05368443,142.51,142.49,39.89784767]
[1741351017939,0.05368443,142.51,142.5,7.0174]
[1741351020531,106.05664504,142.56,142.49,39.89784767]
[1741351020734,29.01312555,142.57,142.54,11.91784767]
[1741351020944,29.01312555,142.57,142.54,39.81784767]
[1741351021240,29.01312555,142.57,142.54,27.9]
[1741351021438,7.0144,142.56,142.54,27.9]
[1741351021741,29.0593814,142.57,142.54,27.94727614]
[1741351021942,11.91784767,142.56,142.54,0.04727614]
[1741351022240,7.016,142.53,142.51,11.91784767]
[1741351022442,11.91784767,142.56,142.51,11.91784767]
[1741351022641,11.91784767,142.56,142.5,27.94]
[1741351023240,7.0162,142.53,142.52,0.04581902]
[1741351026842,0.05114444,142.54,142.52,0.04581902]
[1741351027445,7.0159,142.53,142.52,0.04581902]
[1741351028444,0.05114444,142.54,142.5,27.94]
[1741351028445,7.0166,142.52,142.5,27.94]
[1741351028643,0.05114444,142.54,142.49,11.91784767]
[1741351028844,0.05114444,142.54,142.49,39.73784767]
[1741351029137,11.91784767,142.52,142.47,11.91784767]
[1741351029336,2.0042,142.51,142.47,11.91784767]
[1741351029544,7.0182,142.49,142.48,0.04604707]
[1741351030142,11.97033956,142.5,142.44,11.91784767]
[1741351030341,11.91784767,142.5,142.44,11.91784767]
[1741351030644,11.91784767,142.48,142.42,39.75784767]
[1741351030842,2.0033,142.47,142.42,39.75784767]
[1741351031039,2.0033,142.47,142.42,11.91784767]
[1741351031239,0.05399349,142.46,142.43,0.04434767]
[1741351032850,0.05399349,142.46,142.44,11.91784767]
[1741351033848,0.05399349,142.46,142.45,7.0198]
[1741351034751,9.349e-05,142.46,142.45,7.0198]
[1741351034941,29.01312555,142.51,142.45,3.5]
[1741351035144,29.01312555,142.51,142.5,11.91784767]
[1741351035346,29.01312555,142.51,142.5,39.71784767]
[1741351035944,29.01312555,142.51,142.5,46.73524767]
[1741351036352,0.04599827,142.52,142.5,39.71784767]
[1741351036550,30.99592555,142.58,142.5,39.71784767]
[1741351036742,29.01312555,142.58,142.55,11.91784767]
[1741351036947,29.01312555,142.58,142.56,27.78]
[1741351037350,29.01312555,142.58,142.57,11.91784767]
[1741351038644,29.01312555,142.58,142.56,27.82715078]
[1741351038848,0.04468075,142.59,142.56,27.82715078]
[1741351041355,7.0139,142.57,142.56,27.82715078]
[1741351041654,7.0139,142.57,142.56,0.04715078]
[1741351042451,7.0149,142.55,142.54,27.7]
[1741351042655,18.59208109,142.59,142.51,27.68]
[1741351042852,27.68,142.58,142.49,18.59208109]
[1741351043058,27.68,142.58,142.49,27.68]
[1741351043255,18.59208109,142.57,142.49,27.68]
[1741351043759,7.0159,142.53,142.52,0.04474026]
[1741351043952,0.05099729,142.54,142.49,27.68]
[1741351044150,0.05099729,142.54,142.45,250.19208109]
[1741351044349,27.66,142.54,142.46,7.019]
[1741351044549,27.66,142.54,142.45,46.25208109]
[1741351044755,7.0172,142.51,142.47,7.0185]
[1741351045056,0.04720017,142.5,142.48,0.04551624]
[1741351045948,7.0178,142.49,142.48,0.04551624]
[1741351048852,0.04720017,142.5,142.45,27.64]
[1741351049051,1.9518,142.48,142.45,27.64]
[1741351049452,7.0188,142.47,142.45,27.64]
[1741351049853,7.0188,142.47,142.45,27.68576402]
[1741351050049,1.9518,142.48,142.45,0.04576402]
[1741351050254,7.0193,142.46,142.45,0.04576402]
[1741351050761,0.0518656,142.47,142.41,7.0214]
[1741351051154,0.0518656,142.47,142.4,27.62]
[1741351051760,7.0201,142.45,142.42,7.06629278]
[1741351052546,0.0518656,142.47,142.42,0.04509278]
[1741351053060,7.0710656,142.47,142.43,7.0206]
[1741351053558,0.0518656,142.47,142.43,7.0206]
[1741351053860,7.0194,142.46,142.43,7.0206]
[1741351055559,7.0708656,142.47,142.43,7.0206]
[1741351056464,7.0707656,142.47,142.43,7.0206]
[1741351056667,0.0518656,142.47,142.42,0.04509278]
[1741351057160,7.0708656,142.47,142.43,7.0208]
[1741351058062,7.0193,142.46,142.43,7.0208]
[1741351058467,7.0193,142.46,142.42,0.04509278]
[1741351058668,0.0518656,142.47,142.42,0.04509278]
[1741351059164,7.0206,142.44,142.42,0.04509278]
[1741351059372,0.0518656,142.47,142.42,0.04509278]
[1741351059766,0.0518656,142.47,142.42,7.06609278]
[1741351060466,0.0518656,142.47,142.42,0.04509278]
[1741351060663,0.0518656,142.47,142.43,7.0208]
[1741351060859,0.0518656,142.47,142.42,0.04509278]
[1741351061263,7.0201,142.45,142.42,0.04509278]
[1741351061458,0.0518656,142.47,142.42,0.04509278]
[1741351061665,27.48,142.46,142.42,0.04509278]
[1741351061865,7.0221,142.41,142.38,7.023]
[1741351062065,1.8973,142.45,142.37,27.48]
[1741351062271,1.8973,142.45,142.37,34.5037]
[1741351062768,1.8973,142.45,142.38,7.0232]
[1741351063066,0.04468648,142.42,142.4,0.05257569]
[1741351063272,0.04468648,142.42,142.41,7.0218]
[1741351063573,0.04468648,142.42,142.4,0.05257569]
[1741351065068,0.04468648,142.42,142.41,7.0218]
[1741351065272,0.04468648,142.42,142.41,34.4218]
[1741351066671,0.04468648,142.42,142.41,53.01388109]
[1741351066870,7.0191,142.47,142.43,7.0208]
[1741351067774,8.9704,142.48,142.43,7.0208]
[1741351067971,0.05260329,142.46,142.44,7.06475745]
[1741351068377,0.05260329,142.46,142.44,0.04475745]
[1741351070978,7.0198,142.45,142.44,0.04475745]
[1741351072074,7.022,142.41,142.38,27.26]
[1741351072581,7.0211,142.43,142.38,27.26]
[1741351072981,2.0436,142.45,142.38,27.26]
[1741351073183,0.04723719,142.42,142.39,0.04832831]
[1741351073673,7.0223,142.4,142.39,0.04832831]
[1741351074582,7.0221,142.41,142.39,0.04832831]
[1741351074780,0.04723719,142.42,142.39,0.04832831]
[1741351075285,0.04723719,142.42,142.39,7.07102831]
[1741351075784,0.04723719,142.42,142.39,18.6404094]
[1741351075986,0.04723719,142.42,142.39,0.04832831]
[1741351076281,7.0223,142.4,142.39,0.04832831]
[1741351077075,7.0219,142.41,142.39,0.04832831]
[1741351077280,0.04723719,142.42,142.39,0.04832831]
[1741351077586,7.0221,142.41,142.39,0.04832831]
[1741351078183,0.04723719,142.42,142.39,0.04832831]
[1741351078580,0.04723719,142.42,142.34,18.59208109]
[1741351078774,1.9861,142.44,142.34,18.59208109]
[1741351079084,7.023,142.39,142.35,7.0244]
[1741351079378,1.9861,142.44,142.34,18.59208109]
[1741351079585,1.9861,142.44,142.36,7.0239]
[1741351079884,0.04694393,142.4,142.38,0.04699844]
[1741351080479,7.0228,142.39,142.38,0.04699844]
[1741351081784,0.04694393,142.4,142.38,0.04699844]
[1741351083481,0.04694393,142.4,142.38,27.44699844]
[1741351083889,0.04694393,142.4,142.38,34.46989844]
[1741351084088,0.04694393,142.4,142.38,27.44699844]
[1741351084476,7.06944393,142.4,142.38,27.44699844]
[1741351084889,0.04694393,142.4,142.38,27.44699844]
[1741351086888,7.0228,142.39,142.38,0.04699844]
[1741351088185,7.0241,142.37,142.33,34.6655]
[1741351088387,46.23208109,142.42,142.33,27.64]
[1741351088585,7.0241,142.37,142.33,34.6657]
[1741351088793,46.23208109,142.42,142.32,18.59208109]
[1741351088996,18.59208109,142.4,142.3,46.21208109]
[1741351089294,0.05301006,142.36,142.34,0.04740794]
[1741351089686,7.0247,142.35,142.34,0.04740794]
[1741351090181,0.05301006,142.36,142.28,25.61998109]
[1741351090387,7.0271,142.31,142.29,27.68]
[1741351090690,48.23458109,142.38,142.3,7.027]
[1741351090891,48.23458109,142.38,142.29,27.68]
[1741351091386,0.05212326,142.35,142.32,0.05045152]
[1741351091795,0.05212326,142.35,142.34,7.0252]
[1741351093888,0.05212326,142.35,142.33,34.9256]
[1741351094090,0.05212326,142.35,142.32,0.05045152]
[1741351094589,0.05212326,142.35,142.32,7.07645152]
[1741351094994,7.07722326,142.35,142.32,0.05045152]
[1741351095293,0.05212326,142.35,142.32,0.05045152]
[1741351095592,7.0257,142.33,142.32,0.05045152]
[1741351095803,0.05212326,142.35,142.32,0.05045152]
[1741351097187,7.0257,142.33,142.32,0.05045152]
[1741351097398,18.64420435,142.35,142.27,27.86]
[1741351097594,18.59208109,142.35,142.27,27.86]
[1741351097799,7.0261,142.33,142.29,7.0276]
[1741351098301,7.0253,142.34,142.3,7.0269]
[1741351098494,0.04787601,142.32,142.3,7.07428911]
[1741351098799,0.04787601,142.32,142.3,0.04738911]
[1741351099695,0.04787601,142.32,142.31,7.0267]
[1741351099900,0.04787601,142.32,142.3,0.04738911]
[1741351100103,0.04787601,142.32,142.31,34.9467]
[1741351101305,0.04787601,142.32,142.31,27.92]
[1741351101491,0.04787601,142.32,142.3,0.04738911]
[1741351101692,7.0267,142.31,142.24,18.59208109]
[1741351101904,18.59208109,142.29,142.2,80.59208109]
[1741351102198,6.047,142.28,142.18,18.59208109]
[1741351102391,6.047,142.28,142.2,7.0321]
[1741351102803,3.9988,142.28,142.19,28.64]
[1741351103101,0.0490783,142.25,142.23,0.04643076]
[1741351106199,0.0490783,142.25,142.24,7.0302]
[1741351107395,0.0490783,142.25,142.23,0.04643076]
[1741351108204,0.0490783,142.25,142.24,7.0302]
[1741351108498,0.0490783,142.25,142.23,0.04643076]
[1741351108697,0.0490783,142.25,142.23,7.07683076]
[1741351108899,0.0490783,142.25,142.23,0.04643076]
[1741351111103,0.0490783,142.25,142.23,7.07673076]
[1741351111600,0.0490783,142.25,142.23,7.07693076]
[1741351112404,0.0490783,142.25,142.24,7.0302]
[1741351114303,0.0490783,142.25,142.24,37.5502]
[1741351114608,3.9683,142.32,142.24,49.11208109]
[1741351114804,1.9107,142.32,142.21,0.284]
[1741351115006,7.0286,142.28,142.22,18.59208109]
[1741351115206,1.9107,142.32,142.22,18.59208109]
[1741351115405,1.9107,142.32,142.24,7.0301]
[1741351115704,0.05081522,142.29,142.27,0.04734711]
[1741351116212,7.0282,142.28,142.27,0.04734711]
[1741351117907,304.66811364,142.28,142.03,193.0]
[1741351118107,18.59208109,142.12,142.09,2.0194]
[1741351118313,18.59208109,142.1,142.03,194.22408062]
[1741351118504,18.59208109,142.1,142.03,201.26418062]
[1741351118702,18.59208109,142.1,142.04,30.82]
[1741351118908,18.59208109,142.12,142.04,30.82]
[1741351119109,0.04815001,142.08,142.06,0.04680635]
[1741351119416,25.62758109,142.14,142.04,30.82]
[1741351119609,230.51347774,142.27,142.04,30.82]
[1741351119610,18.59208109,142.16,142.06,25.67894304]
[1741351119806,18.59208109,142.16,142.07,0.5125]
[1741351120007,18.59208109,142.16,142.08,31.0]
[1741351120202,18.59208109,142.14,142.08,31.0]
[1741351120406,31.02,142.21,142.08,31.0]
[1741351120612,18.59208109,142.2,142.09,20.47618109]
[1741351120809,18.59208109,142.22,142.13,62.0]
[1741351121012,0.0443904,142.16,142.14,31.08]
[1741351121212,32.28440363,142.26,142.14,31.08]
[1741351121409,18.59208109,142.25,142.16,0.05224678]
[1741351121611,0.04757368,142.21,142.16,0.05224678]
[1741351121810,0.04757368,142.21,142.19,0.0538718]
[1741351124514,0.04757368,142.21,142.2,62.0]
[1741351125912,29.90368928,142.38,142.2,91.90368928]
[1741351126114,1.9104,142.33,142.2,91.90368928]
[1741351126714,1.9104,142.33,142.23,29.90368928]
[1741351127020,0.0533737,142.29,142.27,0.04903528]
[1741351132223,7.0812737,142.29,142.27,0.04903528]
[1741351132821,0.0533737,142.29,142.27,0.04903528]
[1741351137014,0.0533737,142.29,142.28,30.7]
[1741351137413,0.0533737,142.29,142.28,37.7282]
[1741351137811,7.0249,142.35,142.28,30.7]
[1741351138121,7.0249,142.35,142.3,7.0272]
[1741351138318,4.0774,142.37,142.28,30.7]
[1741351139017,0.04759406,142.34,142.31,7.07869382]
[1741351139223,0.04759406,142.34,142.31,0.05229382]
[1741351140014,0.04759406,142.34,142.33,7.0257]
[1741351140217,28.87709651,142.38,142.32,30.58]
[1741351140615,28.87709651,142.38,142.32,60.48368928]
[1741351141125,0.05104586,142.36,142.32,64.33458928]
[1741351141611,28.87709651,142.43,142.35,29.90368928]
[1741351141817,28.87709651,142.43,142.36,30.54]
[1741351142624,0.04953194,142.41,142.36,30.54]
[1741351142828,0.04953194,142.41,142.38,0.05359769]
[1741351143027,0.04953194,142.41,142.39,62.0]
[1741351143223,28.87709651,142.43,142.4,30.56]
[1741351143826,28.87709651,142.43,142.41,7.0215]
[1741351144323,28.87709651,142.43,142.4,30.56]
[1741351144526,28.92917787,142.43,142.4,30.56]
[1741351144919,0.05208136,142.43,142.42,7.0213]
[1741351145126,1.889,142.5,142.41,29.90368928]
[1741351145628,1.889,142.5,142.41,36.92528928]
[1741351145929,1.889,142.5,142.41,29.90368928]
[1741351146129,7.0191,142.47,142.41,36.92538928]
[1741351146330,7.06420634,142.47,142.44,0.04562179]
[1741351146529,0.04510634,142.47,142.45,62.0]
[1741351147120,7.0193,142.46,142.45,62.0]
[1741351147519,0.04510634,142.47,142.45,62.0]
[1741351148423,7.06430634,142.47,142.45,62.0]
[1741351149531,7.06430634,142.47,142.44,0.04562179]
[1741351150628,0.04510634,142.47,142.44,0.04562179]
[1741351151232,7.0194,142.46,142.44,0.04562179]
[1741351152036,7.06430634,142.47,142.44,0.04562179]
[1741351152734,7.06430634,142.47,142.32,1.22182431]
[1741351152735,30.28,142.46,142.36,18.62489179]
[1741351152928,50.85269179,142.46,142.36,18.62489179]
[1741351153134,7.0219,142.41,142.36,18.62489179]
[1741351153535,50.85269179,142.46,142.35,30.6]
[1741351153737,0.04879097,142.4,142.37,0.04801711]
[1741351153937,1.9024,142.43,142.35,30.6]
[1741351154138,7.0243,142.36,142.31,18.62489179]
[1741351154336,49.26489179,142.42,142.31,18.62489179]
[1741351154536,0.04555398,142.35,142.3,262.36]
[1741351154837,7.0257,142.33,142.3,30.64]
[1741351155035,7.0257,142.33,142.31,0.04870086]
[1741351155235,0.05401949,142.33,142.31,0.04870086]
[1741351156638,7.0262,142.32,142.31,0.04870086]
[1741351157635,8.96791949,142.33,142.31,0.04870086]
[1741351158040,1.94201949,142.33,142.31,0.04870086]
[1741351159640,0.05401949,142.33,142.31,0.04870086]
[1741351161146,0.05401949,142.33,142.22,30.48]
[1741351161342,30.5,142.34,142.23,29.85484274]
[1741351161943,30.5,142.34,142.26,29.85484274]
[1741351162140,1.9185,142.36,142.27,30.52]
[1741351162346,0.05142184,142.31,142.29,0.0512077]
[1741351162545,7.0254,142.34,142.29,0.0512077]
[1741351162747,0.04474913,142.31,142.29,0.0512077]
[1741351162948,0.04474913,142.31,142.29,7.0788077]
[1741351163151,0.04474913,142.31,142.29,0.0512077]
[1741351163760,7.0272,142.3,142.29,0.0512077]
[1741351164058,0.04474913,142.31,142.29,0.0512077]
[1741351165959,0.04474913,142.31,142.3,7.0272]
[1741351166161,0.04474913,142.31,142.29,0.0512077]
[1741351166868,7.07184913,142.31,142.29,0.0512077]
[1741351167161,0.04474913,142.31,142.29,0.0512077]
[1741351169357,0.04474913,142.31,142.29,7.0789077]
[1741351170063,0.04474913,142.31,142.29,0.0512077]
[1741351171059,0.04474913,142.31,142.3,7.0272]
[1741351172059,0.04474913,142.31,142.29,7.0787077]
[1741351172866,0.04474913,142.31,142.29,0.0512077]
[1741351173961,0.04474913,142.31,142.29,7.0788077]
[1741351174358,0.04474913,142.31,142.29,0.0512077]
[1741351177465,7.07174913,142.31,142.29,0.0512077]
[1741351177970,0.04474913,142.31,142.29,0.0512077]
[1741351180770,7.0272,142.3,142.25,36.9894]
[1741351181161,7.0272,142.3,142.26,7.0292]
[1741351181366,0.04474913,142.31,142.25,29.96]
[1741351181570,0.04474913,142.31,142.24,29.96]
[1741351181766,0.04474913,142.31,142.26,7.0288]
[1741351181959,0.04474913,142.31,142.26,0.05244463]
[1741351182360,7.07184913,142.31,142.27,7.0284]
[1741351182570,0.04474913,142.31,142.27,7.0284]
[1741351182970,0.04474913,142.31,142.26,0.05244463]
[1741351183474,7.0275,142.3,142.26,7.08134463]
[1741351183678,0.04474913,142.31,142.26,7.08134463]
[1741351183975,0.04474913,142.31,142.26,0.05244463]
[1741351184772,0.04474913,142.31,142.27,18.6699627]
[1741351184961,0.04474913,142.31,142.29,18.6699627]
[1741351185674,0.04474913,142.31,142.28,29.92]
[1741351185876,7.07164913,142.31,142.28,29.92]
[1741351186378,7.0274,142.3,142.28,29.92]
[1741351186577,0.04474913,142.31,142.26,0.05244463]
[1741351187278,7.028,142.29,142.26,0.05244463]
[1741351187666,0.04474913,142.31,142.26,0.05244463]
[1741351188473,7.0281,142.29,142.26,0.05244463]
[1741351189184,0.04474913,142.31,142.26,0.05244463]
[1741351189572,0.04474913,142.31,142.28,7.0278]
[1741351189782,0.04474913,142.31,142.26,0.05244463]
[1741351190874,0.04474913,142.31,142.28,7.0277]
[1741351191072,0.04474913,142.31,142.26,0.05244463]
[1741351191274,0.04474913,142.31,142.27,18.6699627]
[1741351191474,0.04474913,142.31,142.3,7.0272]
[1741351193580,4.913e-05,142.31,142.3,7.0272]
[1741351196981,4.913e-05,142.31,142.29,55.46324862]
[1741351197184,4.913e-05,142.31,142.29,0.04588592]
[1741351197587,7.02714913,142.31,142.29,0.04588592]
[1741351197787,4.913e-05,142.31,142.29,0.04588592]
[1741351197989,4.913e-05,142.31,142.3,7.0272]
[1741351203184,1.9408,142.37,142.35,7.0245]
[1741351204192,1.9408,142.37,142.33,7.0255]
[1741351204492,1.9408,142.37,142.32,29.46]
[1741351204793,30.60344012,142.39,142.35,7.0245]
[1741351204987,30.60344012,142.39,142.32,29.46]
[1741351205190,0.04620817,142.38,142.36,0.05247094]
[1741351206400,7.06970817,142.38,142.36,0.05247094]
[1741351206692,0.04620817,142.38,142.36,0.05247094]
[1741351208491,0.04620817,142.38,142.36,29.37247094]
[1741351208987,0.04620817,142.38,142.37,18.6699627]
[1741351209189,0.04620817,142.38,142.37,25.6937627]
[1741351210388,2.0216,142.43,142.4,7.0219]
[1741351210591,2.0216,142.43,142.4,29.3]
[1741351211095,9.0951,142.46,142.41,7.0217]
[1741351211491,0.0473026,142.45,142.42,0.04614159]
[1741351212290,0.0473026,142.45,142.43,7.0205]
[1741351212596,0.0473026,142.45,142.42,0.04614159]
[1741351212892,0.0473026,142.45,142.43,7.0208]
[1741351213286,0.0473026,142.45,142.42,62.04614159]
[1741351213496,0.0473026,142.45,142.42,0.04614159]
[1741351214098,0.0473026,142.45,142.42,7.06714159]
[1741351214792,0.0473026,142.45,142.43,7.0207]
[1741351214993,0.0473026,142.45,142.42,0.04614159]
[1741351215396,0.0473026,142.45,142.43,7.0206]
[1741351216803,0.0473026,142.45,142.44,7.0203]
[1741351217495,0.0473026,142.45,142.42,0.04614159]
[1741351217890,0.0473026,142.45,142.44,7.0203]
[1741351218295,0.0473026,142.45,142.42,0.04614159]
[1741351218494,0.0473026,142.45,142.42,7.06714159]
[1741351218702,0.0473026,142.45,142.42,0.04614159]
[1741351219501,0.0473026,142.45,142.43,7.0204]
[1741351219802,0.0473026,142.45,142.42,0.04614159]
[1741351220001,0.0473026,142.45,142.43,7.0205]
[1741351220599,0.0473026,142.45,142.42,0.04614159]
[1741351221195,0.0473026,142.45,142.38,7.023]
[1741351221401,0.0473026,142.45,142.38,29.0]
[1741351221694,7.0203,142.44,142.4,7.022]
[1741351221900,18.7172653,142.45,142.35,18.6699627]
[1741351222103,2.0137,142.43,142.37,29.0]
[1741351222504,0.04459433,142.41,142.39,0.05276572]
[1741351222705,7.06659433,142.41,142.39,0.05276572]
[1741351222908,0.04459433,142.41,142.39,0.05276572]
[1741351223400,0.04459433,142.41,142.4,7.0223]
[1741351224099,0.04459433,142.41,142.39,7.07526572]
[1741351224300,0.04459433,142.41,142.39,0.05276572]
[1741351224791,0.04459433,142.41,142.4,69.0223]
[1741351225405,0.04459433,142.41,142.4,62.0]
[1741351225700,0.04459433,142.41,142.39,0.05276572]
[1741351227905,0.04459433,142.41,142.39,7.07546572]
[1741351229105,0.04459433,142.41,142.4,7.0223]
[1741351229403,0.04459433,142.41,142.39,0.05276572]
[1741351230005,0.04459433,142.41,142.39,18.72272842]
[1741351230302,0.04459433,142.41,142.4,7.0223]
[1741351231804,1.9241,142.46,142.39,18.72272842]
[1741351232007,1.9241,142.46,142.42,18.6699627]
[1741351232208,1.9241,142.46,142.42,47.4899627]
[1741351232405,1.9241,142.46,142.42,54.5108627]
[1741351233010,0.05350933,142.45,142.43,0.05360592]
[1741351234806,114.3241605,142.55,142.43,0.05360592]